fUSD/lending_fUSD_20250402
["ID","MTS","AMOUNT","RATE_DAILY","PERIOD"]
[357026214,1743587433382,-3372.99,0.00052328,7]
[357026215,1743587433392,-3372.99,0.00052602,7]
[357026216,1743587433402,-3372.99,0.00052876,7]
[357026217,1743587433412,-500.0,0.00053,120]
[357026218,1743587433422,-500.0,0.00053,120]
[357026219,1743587433434,-500.0,0.00053,120]
[357026220,1743587433444,-500.0,0.00053,120]
[357026221,1743587433453,-500.0,0.00053,120]
[357026222,1743587433462,-515.2901692,0.00053,120]
[357026223,1743587433471,-500.0,0.00053,120]
[357026224,1743587433480,-500.0,0.00053,120]
[357026225,1743587433490,-500.0,0.00053,120]
[357026226,1743587433499,-677.24405865,0.00053,120]
[357026227,1743587433508,-500.0,0.00053,120]
[357026228,1743587433517,-500.0,0.00053,120]
[357026229,1743587433526,-986.7854,0.00053,120]
[357026230,1743587433536,-195.94,0.00053091,2]
[357026231,1743587433545,-500.0,0.00053149,2]
[357026232,1743587433554,-500.0,0.00053149,120]
[357026233,1743587433563,-500.0,0.00053149,120]
[357026234,1743587433573,-500.0,0.00053149,120]
[357026235,1743587433582,-500.0,0.00053149,120]
[357026236,1743587433591,-247.97339167,0.00053149,120]
[357026237,1743587433600,-3372.99,0.0005315,7]
[357026238,1743587433610,-1141.30867307,0.00053217,15]
[357026239,1743587433619,-544.48020295,0.00053423,120]
[357026240,1743587433629,-563.101382,0.00053423,120]
[357026241,1743587433639,-522.96712719,0.00053423,120]
[357026242,1743587433648,-3372.99,0.00053424,7]
[357026243,1743587433657,-523.0,0.00053544,30]
[357026244,1743587433667,-3372.99,0.00053698,7]
[357026245,1743587433676,-504.07280656,0.00053722,15]
[357026246,1743587433685,-311.91,0.00053896,2]
[357026247,1743587433695,-152.3,0.00053958,2]
[357026248,1743587433704,-403.17410154,0.0005397,7]
[357026249,1743587433713,-3372.99,0.00053972,7]
[357026250,1743587433723,-152.71,0.00054,54]
[357026251,1743587433732,-152.71,0.00054,54]
[357026252,1743587433741,-523.0,0.00054096,30]
[357026253,1743587433751,-3372.99,0.00054246,7]
[357026254,1743587433760,-250.0,0.00054425,120]
[357026255,1743587433770,-434.44,0.00054478,30]
[357026256,1743587433779,-3372.99,0.0005452,7]
[357026257,1743587433789,-523.0,0.00054648,30]
[357026258,1743587433798,-3372.99,0.00054794,7]
[357026259,1743587433807,-500.0,0.00054794,120]
[357026260,1743587433817,-157.36,0.00054826,120]
[357026261,1743587433827,-444.31,0.00054841,30]
[357026262,1743587433837,-783.26,0.00054841,30]
[357026263,1743587433847,-400.0,0.0005487,7]
[357026264,1743587433857,-11258.8375272,0.0005487,4]
[357026265,1743587433867,-500.0,0.00054873,5]
[357026266,1743587433877,-500.0,0.00054873,14]
[357026267,1743587433887,-56294.1876359,0.0005488,4]
[357026268,1743587433897,-112588.375272,0.0005489,4]
[357026269,1743587433907,-36073.6855687,0.0005489,4]
[357026270,1743587433916,-151.41,0.0005489,120]
[357026271,1743587433927,-219099.21811336,0.000549,120]
[357026272,1743587433936,-374.9,0.00054978,30]
[357026273,1743587433946,-443.88,0.00054978,30]
[357026274,1743587433955,-443.88,0.00054978,30]
[357026275,1743587433965,-347.33,0.00054978,30]
[357026276,1743587433974,-443.88,0.00054978,30]
[357026277,1743587433984,-347.33,0.00054978,30]
[357026278,1743587433994,-347.33,0.00054978,30]
[357026279,1743587434004,-525.49244804,0.0005499,120]
[357026280,1743587434013,-6012.28092811,0.0005499,4]
[357026281,1743587434022,-4587.77159271,0.00055,120]
[357026282,1743587434031,-199.76048165,0.00055,120]
[357026283,1743587434041,-3372.99,0.00055068,7]
[357026284,1743587434050,-11258.8375272,0.00055085,4]
[357026285,1743587434059,-6012.28092811,0.00055085,4]
[357026286,1743587434069,-523.0,0.000552,30]
[357026287,1743587434078,-222.99174993,0.000552,30]
[357026288,1743587434087,-500.0,0.00055288,2]
[357026289,1743587434097,-1141.30867307,0.00055303,15]
[357026290,1743587434106,-6012.28092811,0.00055332,4]
[357026291,1743587434115,-3372.99,0.00055342,7]
[357026292,1743587434124,-11258.8375272,0.00055606,4]
[357026293,1743587434133,-3373.0207,0.00055616,7]
[357026294,1743587434142,-523.0,0.00055752,30]
[357026295,1743587434152,-6012.28092811,0.0005578,4]
[357026296,1743587434161,-504.07280656,0.00056033,15]
[357026297,1743587434171,-311.91,0.0005616,2]
[357026298,1743587434180,-6012.28092811,0.00056294,4]
[357026299,1743587434189,-152.71,0.000563,57]
[357026300,1743587434199,-152.71,0.000563,57]
[357026301,1743587434208,-523.0,0.00056304,30]
[357026302,1743587434218,-200.0,0.00056375,120]
[357026303,1743587434227,-523.0,0.00056856,30]
[357026304,1743587434237,-2181.5579149,0.00057191,120]
[357026305,1743587434247,-1141.30867307,0.00057388,15]
[357026306,1743587434256,-1000.0,0.00057429,120]
[357026307,1743587434267,-821.0,0.000578,25]
[357026308,1743587434278,-1000.0,0.000578,21]
[357026309,1743587434287,-197.46,0.000578,2]
[357026310,1743587434296,-11258.8375272,0.00057814,4]
[357026311,1743587434306,-968.58743263,0.00057824,120]
[357026312,1743587434318,-2100.0,0.000579,21]
[357026313,1743587434332,-6012.28092811,0.00057969,4]
[357026314,1743587434342,-151.41,0.0005797,120]
[357026315,1743587434352,-6012.28092811,0.00057979,4]
[357026316,1743587434362,-151.41,0.0005798,120]
[357026317,1743587434371,-56294.1876359,0.0005798,4]
[357026318,1743587434381,-42085.9664968,0.0005798,4]
[357026319,1743587434511,-151.41,0.0005798,120]
[357026320,1743587434521,-500.0,0.00057989,120]
[357026321,1743587434531,-500.0,0.00057989,120]
[357026322,1743587434540,-500.0,0.00057989,30]
[357026323,1743587434549,-500.0,0.00057989,120]
[357026324,1743587434558,-500.0,0.00057989,120]
[357026325,1743587434567,-500.0,0.00057989,120]
[357026326,1743587434577,-22517.6750543,0.0005799,4]
[357026327,1743587434586,-30061.4046405,0.0005799,4]
[357026328,1743587434595,-195.90861049,0.0005799,59]
[357026329,1743587434604,-31959.58756138,0.0005799,59]
[357026330,1743587437250,-500.0,0.00053149,120]
[357026331,1743587437259,-500.0,0.00054879,120]
[357026332,1743587437270,-326.80261852,0.00054879,120]
[357026333,1743587437280,-500.0,0.00054879,120]
[357026334,1743587437289,-17671.79566061,0.0005799,59]
[357026335,1743587437299,-102208.775778,0.0005799,4]
[357026337,1743587437309,-151.41,0.0005799,120]
[357026339,1743587437318,-151.41,0.0005799,120]
[357026340,1743587437330,-200.0,0.00058,120]
[357026341,1743587437339,-140878.31835678,0.00058,120]
[357026342,1743587437350,-2326.65286154,0.00058,120]
[357026343,1743587437361,-804.79,0.00058,120]
[357026345,1743587438460,-1466.81080872,0.00058,120]
[357026346,1743587438548,-6545.44,0.00058,120]
[357026347,1743587438619,-673.66599999,0.00058,120]
[357026414,1743587440458,-490.03571608,0.00054878,26]
[357026415,1743587440824,-187.25832652,0.00054878,26]
[357026416,1743587440834,-185.25113997,0.00058,120]
[357026546,1743587446163,-3536.28,0.00058,120]
[357026547,1743587446174,-687.06287926,0.00058,120]
[357026548,1743587446186,-995.3076,0.00058,120]
[357026549,1743587446391,-75.85703945,0.00058,120]
[357026550,1743587446403,-4368.43318458,0.00058,120]
[357026551,1743587446432,-741.58819022,0.00058,120]
[357026552,1743587446455,-25558.42205855,0.00058,120]
[357026553,1743587446470,-47431.54988094,0.00058,120]
[357026554,1743587446479,-150.0,0.00058,120]
[357026555,1743587446488,-500.0,0.00058263,120]
[357026556,1743587446498,-500.0,0.00058263,30]
[357026557,1743587446506,-500.0,0.00058263,120]
[357026558,1743587446515,-577.97,0.00058263,120]
[357026559,1743587446524,-500.0,0.00058263,120]
[357026560,1743587446534,-156.91,0.00058317,120]
[357026561,1743587446543,-504.07280656,0.00058344,15]
[357026562,1743587446552,-311.91,0.00058424,2]
[357026563,1743587446561,-614.32,0.00058537,120]
[357026564,1743587446570,-500.0,0.00058537,30]
[357026565,1743587446579,-500.0,0.00058537,120]
[357026566,1743587446588,-498.49297394,0.00058537,120]
[357026567,1743587446598,-199.3356936,0.00058628,14]
[357026568,1743587446607,-150.0,0.00058628,14]
[357026569,1743587446616,-150.0,0.00058638,14]
[357026570,1743587446625,-150.0,0.00058655,14]
[357026571,1743587446634,-150.0,0.00058671,14]
[357026572,1743587446643,-150.0,0.00058679,14]
[357026573,1743587446653,-150.0,0.0005868,14]
[357026574,1743587446662,-150.0,0.0005869,14]
[357026575,1743587446671,-150.0,0.0005869,14]
[357026576,1743587446680,-150.0,0.00058697,14]
[357026577,1743587446689,-152.71,0.000587,60]
[357026578,1743587446701,-224.52845138,0.00058726,60]
[357026579,1743587446710,-150.0,0.00058747,14]
[357026580,1743587446719,-150.0,0.00058757,14]
[357026581,1743587446729,-1000.0,0.0005879,60]
[357026582,1743587446737,-150.0,0.00058796,14]
[357026583,1743587446747,-500.0,0.00058811,30]
[357026584,1743587446756,-491.12726396,0.00058811,120]
[357026585,1743587446765,-150.0,0.00058816,14]
[357026586,1743587446774,-150.0,0.00058844,14]
[357026587,1743587446784,-150.0,0.00058861,14]
[357026588,1743587446793,-150.0,0.00058864,14]
[357026589,1743587446802,-151.41,0.0005889,120]
[357026590,1743587446811,-628.06952981,0.00058892,60]
[357026591,1743587446820,-152.8582146,0.000589,75]
[357026592,1743587446829,-3100.0,0.000589,21]
[357026593,1743587446838,-88888.0,0.000589,120]
[357026594,1743587446847,-151.0,0.000589,120]
[357026595,1743587446856,-159.437435,0.000589,120]
[357026596,1743587446866,-3090.6,0.000589,120]
[357026597,1743587446875,-1815.5183869,0.00058964,2]
[357026598,1743587446884,-2065.5999669,0.00058964,2]
[357026600,1743587446893,-382.8098873,0.00058964,2]
[357026601,1743587446903,-498.3398259,0.00058964,2]
[357026602,1743587446911,-12000.0,0.00058968,120]
[357026603,1743587446921,-200.0,0.0005897,15]
[357026604,1743587446930,-400.0,0.0005897,30]
[357026605,1743587446939,-151.41,0.0005899,120]
[357026606,1743587446947,-151.41,0.0005899,120]
[357026607,1743587446957,-151.41,0.0005899,120]
[357026608,1743587446965,-151.41,0.0005899,120]
[357026609,1743587446974,-151.41,0.0005899,120]
[357026610,1743587446983,-151.41,0.0005899,120]
[357026611,1743587446993,-151.41,0.0005899,120]
[357026612,1743587447001,-25000.0,0.00058999,120]
[357026613,1743587447011,-150.0,0.00058999,120]
[357026614,1743587447019,-500.0,0.00058999,120]
[357026615,1743587447028,-500.0,0.00058999,120]
[357026616,1743587447037,-500.0,0.00058999,120]
[357026617,1743587447046,-500.0,0.00058999,120]
[357026618,1743587447056,-500.0,0.00058999,120]
[357026619,1743587447065,-519.67897047,0.00058999,120]
[357026620,1743587447074,-999.0,0.00058999,120]
[357026621,1743587447083,-45867.98273693,0.00059,59]
[357026622,1743587447098,-4132.01726307,0.00059,59]
[357026623,1743587447107,-525.0,0.00059,25]
[357026624,1743587447116,-245340.40293688,0.00059,120]
[357026625,1743587447545,188.18159935,0.00049315,120]
[357026626,1743587468027,1792.439065,7.945e-05,2]
[357026629,1743587527486,887.911389,7.945e-05,2]
[357026630,1743587797591,-250.0,0.00027,2]
[357026631,1743588274261,-184.13930065,0.00026849,2]
[357026632,1743588332735,150000.0,0.00032,120]
[357026633,1743588348149,40000.0,0.00032,120]
[357026634,1743588355120,-199.34633368,0.00026849,2]
[357026635,1743588355800,-152.35,0.00026849,2]
[357026636,1743588358085,-1771.29241284,0.00026849,2]
[357026637,1743588379719,3200.0,0.00032,120]
[357026640,1743588406004,-622.3209,0.00026749,2]
[357026641,1743588406041,-137.6791,0.00026849,2]
[357026642,1743588436175,-3355.17559301,0.00026849,2]
[357026643,1743588437100,-390.39950955,0.00026849,2]
[357026644,1743588446100,-3505.61775027,0.00026849,2]
[357026645,1743588446127,-151.81,0.00026849,2]
[357026646,1743588446152,-151.81,0.00032968,2]
[357026647,1743588446189,-198.706,0.00034521,39]
[357026648,1743588446221,-151.81,0.00039087,2]
[357026649,1743588446249,-151.81,0.00045205,2]
[357026650,1743588446275,-468.60979458,0.0004575,10]
[357026651,1743588446310,-31.39020542,0.0004575,10]
[357026652,1743588446335,-2334.11331683,0.00048,5]
[357026653,1743588546099,-19404.92630552,0.00048,5]
[357026654,1743588546123,-311.81840065,0.00049315,120]
[357026655,1743588546146,-307.25708808,0.00049315,120]
[357026656,1743588547151,-517.59159615,0.00049315,120]
[357026657,1743588547172,-518.37672789,0.00049315,120]
[357026658,1743588547193,-500.0,0.00049315,30]
[357026659,1743588547214,-500.0,0.00049315,120]
[357026660,1743588547235,-500.0,0.00049315,120]
[357026661,1743588547256,-150.0,0.00049452,2]
[357026662,1743588547277,-503.12317002,0.00049589,120]
[357026663,1743588547298,-500.0,0.00049589,30]
[357026664,1743588547319,-577.97,0.00049589,120]
[357026665,1743588547339,-500.0,0.00049863,30]
[357026666,1743588547361,-500.0,0.00050136,30]
[357026667,1743588547386,-500.0,0.0005041,30]
[357026668,1743588547407,-233.93,0.00050525,2]
[357026669,1743588547431,-500.0,0.00050684,30]
[357026670,1743588547458,-500.0,0.00050958,30]
[357026671,1743588547482,-500.0,0.00051232,30]
[357026672,1743588611815,152.35,0.00051224,2]
[357026677,1743588631934,-569.0,0.00034535,120]
[357026678,1743588631944,-859.0938604,0.00034535,120]
[357026679,1743588631957,-710.72685074,0.00034535,120]
[357026680,1743588631967,-151.81,0.00051324,2]
[357026681,1743588631977,-150.0,0.00051908,7]
[357026682,1743588631986,-200.0,0.00051908,2]
[357026683,1743588631997,-1000.0,0.00051979,120]
[357026684,1743588632006,-250.0,0.0005267,120]
[357026685,1743588632016,-233.93,0.00052789,2]
[357026686,1743588632025,-23900.0,0.00053015,2]
[357026687,1743588632035,-198.706,0.00053391,99]
[357026688,1743588632045,-441.0,0.00053544,30]
[357026690,1743588632055,-441.0,0.00054096,30]
[357026692,1743588632065,-150.0,0.00054247,2]
[357026694,1743588632074,-441.0,0.00054648,30]
[357026696,1743588632083,-503.74765548,0.00055,120]
[357026698,1743588632096,-26133.54572712,0.00055,120]
[357026700,1743588632109,-397.7823,0.00055,120]
[357026763,1743588637548,-2083.76307372,0.00055,120]
[357026764,1743588637560,-43913.94865171,0.00055,120]
[357026788,1743588641879,-0.01421005,0.00055,120]
[357026803,1743588642681,-42470.9460374,0.00055,120]
[357026804,1743588642691,-233.93,0.00055053,2]
[357026805,1743588642701,-441.0,0.000552,30]
[357026806,1743588642714,-188.17341443,0.000552,30]
[357026807,1743588642724,-441.0,0.00055752,30]
[357026808,1743588642734,-252.03640328,0.000559,15]
[357026809,1743588642743,-223.0,0.000559,120]
[357026810,1743588642752,-500.0,0.00055973,15]
[357026811,1743588642763,-500.0,0.00055999,120]
[357026812,1743588642772,-428.76183297,0.00055999,120]
[357026813,1743588642781,-500.0,0.00055999,120]
[357026814,1743588642792,-500.0,0.00055999,120]
[357026815,1743588642803,-1476.02,0.00055999,120]
[357026816,1743588642812,-453.64848499,0.00055999,120]
[357026817,1743588642822,-521.86233351,0.00055999,120]
[357026818,1743588642832,-46384.76462731,0.00056,120]
[357026819,1743588642879,-22.14959277,0.00056,120]
[357026820,1743588642891,-12672.3758928,0.00056,120]
[357026912,1743588643991,-562.94029799,0.00056,120]
[357027148,1743588645775,-372.79728861,0.00056,120]
[357027156,1743588645845,-25588.83451017,0.00056,120]
[357027197,1743588671231,-336.03,0.0005562,12]
[357027198,1743588671258,-2813.0815,0.000559,2]
[357027199,1743588671296,-850.99390221,0.000559,2]
[357027200,1743588671324,-500.0,0.00055999,120]
[357027201,1743588671351,-526.1617748,0.00055999,120]
[357027202,1743588671382,-19973.73282299,0.00056,120]
[357027203,1743588674158,-25000.0,0.00056,120]
[357027204,1743588675024,-25000.0,0.00056,120]
[357027205,1743588675807,-25000.0,0.00056,120]
[357027208,1743588712935,150.0,0.0005,2]
[357027209,1743588805559,-200.0,0.000531,2]
[357027210,1743588805584,-200.0,0.000531,2]
[357027211,1743588805612,-200.0,0.000531,2]
[357027212,1743588805636,-179.8895,0.000531,2]
[357027213,1743589282787,1555.2,0.00032,120]
[357027214,1743589507992,417467.31631244,0.00015,2]
[357027215,1743589509147,-150.7605137,0.00015,2]
[357027216,1743589555786,28566.7770743,6.94e-05,2]
[357027217,1743589556146,-3883.37263153,0.00015,2]
[357027218,1743589557292,-150.0,0.00015,2]
[357027219,1743589563298,10171.75854122,8e-05,2]
[357027220,1743589567641,4512.76383707,8e-05,2]
[357027222,1743589600651,11747.86564223,0.00025,120]
[357027223,1743589624189,-151.6824,0.00014999,2]
[357027224,1743589626095,-26.3176,0.00014999,2]
[357027225,1743589626124,-267.20532573,0.00015,2]
[357027226,1743589628123,-14460.48112904,0.00015,2]
[357027227,1743589634351,-2000.0,0.00015,2]
[357027228,1743589639789,-2000.0,0.00015,2]
[357027229,1743589641146,-6432.2715634,0.00015,2]
[357027230,1743589645684,-1140.0,0.00015,2]
[357027231,1743589676574,-393.13025879,0.00014999,2]
[357027232,1743589676606,-366.86974121,0.00015,2]
[357027233,1743589677715,15903.27850556,0.0001,2]
[357027234,1743589688253,982.11121822,9.5e-05,2]
[357027235,1743589709044,377.14608223,7.888e-05,2]
[357027236,1743589714664,6416.17682615,9.828e-05,2]
[357027237,1743589717976,-350.0,0.000165,12]
[357027238,1743589745113,-112996.646,0.00015,2]
[357027239,1743589748173,-29804.86838,0.00015,2]
[357027240,1743589754107,-362.2535798,0.000149,2]
[357027241,1743589756285,-425.17943861,0.000149,2]
[357027242,1743589756310,-182695.14736482,0.00015,2]
[357027243,1743589756332,-32358.26768683,0.00015,2]
[357027244,1743589756354,-425.898675,0.0002,4]
[357027245,1743589756375,-1785.1177888,0.00024,5]
[357027246,1743589756398,-166.67,0.00026849,2]
[357027247,1743589756419,-250.0,0.00027,2]
[357027248,1743589756443,-500.0,0.00029598,2]
[357027249,1743589756466,-868.51236244,0.00032699,2]
[357027250,1743589756488,-492.46970403,0.00032799,2]
[357027251,1743589756510,-279.79,0.00034533,10]
[357027252,1743589756532,-868.51236238,0.00035721,2]
[357027253,1743589756555,-492.46970395,0.00035921,2]
[357027254,1743589756576,-868.51236238,0.00038744,2]
[357027255,1743589756597,-492.46970395,0.00039044,2]
[357027256,1743589756622,-868.51236238,0.00041766,15]
[357027257,1743589756644,-492.46970395,0.00042166,15]
[357027258,1743589756666,-39745.43956203,0.00043,30]
[357027259,1743589756694,-9015.07356945,0.00043,30]
[357027260,1743589756716,-868.51236238,0.00044788,15]
[357027261,1743589756737,-166.67,0.00045205,2]
[357027262,1743589756758,-492.46970395,0.00045288,15]
[357027263,1743589756779,-1000.0,0.00046575,120]
[357027264,1743589756801,-868.51236238,0.00047811,15]
[357027265,1743589756822,-492.46970395,0.00048411,15]
[357027266,1743589756844,-500.0,0.000489,120]
[357027267,1743589756864,-336.65225394,0.0004933,2]
[357027268,1743589756885,-152.19608605,0.000499,120]
[357027269,1743589756907,-500.0,0.00049973,120]
[357027270,1743589756929,-150.13328308,0.00049973,120]
[357027271,1743589756951,-500.0,0.0004999,120]
[357027272,1743589756972,-477.43781961,0.0005,120]
[357027273,1743589756992,-489.41353089,0.000507,120]
[357027274,1743589757013,-157.37,0.0005077,120]
[357027275,1743589757037,-868.51236238,0.00050833,15]
[357027276,1743589767275,253.2781424,0.00049816,30]
[357027287,1743589804444,500.0,0.0003294,2]
[357027288,1743589808197,3409.876428,7.945e-05,2]
[357027289,1743589826504,328.404,0.0004601,2]
[357027294,1743589831698,-527.81209367,0.00034547,7]
[357027296,1743589831708,-155.68512634,0.00051506,2]
[357027298,1743589831806,-67.41487366,0.00051506,2]
[357027299,1743589831816,-332.58512634,0.00051533,15]
[357027300,1743589831914,-159.88457761,0.00051533,15]
[357027301,1743589831924,-498.36542239,0.0005169,120]
[357027302,1743589832022,-1.63457761,0.0005169,120]
[357027303,1743589832032,-155.18,0.00052,120]
[357027304,1743589832041,-493.31881439,0.00052,120]
[357027305,1743589832051,-12.42309609,0.00052,2]
[357027446,1743589835493,-1487.57690391,0.00052,2]
[357027447,1743589835502,-1000.0,0.00052634,120]
[357027448,1743589835510,-500.0,0.0005265,120]
[357027449,1743589835519,-162.7,0.00052815,2]
[357027450,1743589835528,-10675.03845025,0.00053,120]
[357027451,1743589835537,-20.1105,0.000531,2]
[357027452,1743589835546,-200.0,0.000531,2]
[357027453,1743589835555,-200.0,0.000531,2]
[357027454,1743589835563,-200.0,0.000531,2]
[357027455,1743589835572,-348.0,0.000531,2]
[357027456,1743589835581,-185.03643351,0.000531,2]
[357027457,1743589835590,-500.0,0.000536,120]
[357027458,1743589835599,-632.14110638,0.0005367,25]
[357027459,1743589835612,-15507.42,0.000537,2]
[357027460,1743589835621,-223.1,0.0005377,2]
[357027461,1743589835630,-868.51236238,0.00053855,15]
[357027462,1743589835639,-1000.0,0.00054,2]
[357027463,1743589835648,-575.09777901,0.00054,4]
[357027464,1743589835657,-10484.80933045,0.000545,120]
[357027465,1743589835666,-416.48,0.00054518,2]
[357027466,1743589835675,-23900.0,0.00054518,2]
[357027467,1743589835684,-150.0,0.00054535,7]
[357027468,1743589835693,-250.0,0.00054565,120]
[357027469,1743589835702,-492.46970395,0.00054655,15]
[357027470,1743589835711,-629.65,0.00054794,120]
[357027471,1743589835719,-1177.83,0.00054794,2]
[357027472,1743589835728,-500.0,0.00054794,2]
[357027473,1743589835737,-500.0,0.00054794,2]
[357027474,1743589835745,-1414.52,0.00054794,120]
[357027475,1743589835755,-500.9625,0.000549,2]
[357027476,1743589835764,-900.0,0.000549,20]
[357027477,1743589835774,-500.0,0.00054973,14]
[357027478,1743589835784,-2750.3642781,0.0005499,4]
[357027479,1743589835793,-160.21,0.0005499,30]
[357027480,1743589835803,-500.0,0.00054999,120]
[357027481,1743589835813,-498.64918557,0.00054999,120]
[357027482,1743589835823,-500.0,0.00054999,120]
[357027483,1743589835832,-500.0,0.00054999,120]
[357027484,1743589835841,-500.0,0.00054999,120]
[357027485,1743589835851,-500.0,0.00054999,120]
[357027486,1743589835861,-527.33045053,0.00054999,120]
[357027487,1743589835871,-526.30185375,0.00054999,120]
[357027488,1743589835880,-500.0,0.00054999,120]
[357027489,1743589835890,-525.91890257,0.00054999,120]
[357027490,1743589835900,-540.69095304,0.00054999,120]
[357027491,1743589835909,-516.23715627,0.00054999,120]
[357027492,1743589835920,-555.39248885,0.00054999,120]
[357027493,1743589835931,-533.5585631,0.00054999,120]
[357027494,1743589835941,-450.59436655,0.00054999,120]
[357027495,1743589835950,-521.58013664,0.00054999,120]
[357027496,1743589835961,-343.16349001,0.00054999,120]
[357027497,1743589835971,-528.05858635,0.00054999,120]
[357027498,1743589835979,-500.0,0.00054999,120]
[357027499,1743589835989,-396.7361663,0.00054999,120]
[357027500,1743589835998,-500.0,0.00054999,120]
[357027501,1743589836009,-526.25295605,0.00054999,120]
[357027502,1743589836018,-500.0,0.00054999,120]
[357027503,1743589836028,-564.95362073,0.00054999,120]
[357027504,1743589836037,-528.14214272,0.00054999,120]
[357027505,1743589836047,-500.0,0.00054999,120]
[357027506,1743589836057,-573.52903489,0.00054999,120]
[357027507,1743589836066,-517.81884541,0.00054999,120]
[357027508,1743589836077,-597.44144826,0.00054999,90]
[357027509,1743589836091,-1024.06394681,0.00054999,120]
[357027510,1743589836103,-538.31866709,0.00054999,120]
[357027511,1743589836112,-192.74291192,0.00054999,120]
[357027512,1743589836123,-500.0,0.00054999,120]
[357027513,1743589836132,-500.0,0.00054999,30]
[357027514,1743589836142,-500.0,0.00054999,12]
[357027515,1743589836151,-500.0,0.00054999,120]
[357027516,1743589836162,-500.0,0.00054999,120]
[357027517,1743589836172,-500.0,0.00054999,120]
[357027518,1743589836181,-150.0,0.00054999,120]
[357027519,1743589836191,-500.0,0.00054999,120]
[357027520,1743589836200,-500.0,0.00054999,120]
[357027521,1743589836210,-500.0,0.00054999,120]
[357027522,1743589836219,-500.0,0.00054999,120]
[357027523,1743589836229,-332.20086062,0.00054999,120]
[357027524,1743589836239,-500.0,0.00054999,120]
[357027525,1743589836249,-500.0,0.00054999,120]
[357027526,1743589836258,-500.0,0.00054999,120]
[357027527,1743589836267,-158.73477568,0.00054999,120]
[357027528,1743589836276,-506.78,0.00054999,120]
[357027529,1743589836285,-500.0,0.00054999,120]
[357027530,1743589836295,-500.0,0.00054999,120]
[357027531,1743589836305,-500.0,0.00054999,120]
[357027532,1743589836314,-500.0,0.00054999,30]
[357027533,1743589836323,-500.0,0.00054999,120]
[357027534,1743589836333,-500.0,0.00054999,120]
[357027535,1743589836342,-500.0,0.00054999,120]
[357027536,1743589836352,-455.09329815,0.00054999,120]
[357027537,1743589836361,-150.0,0.00055,2]
[357027538,1743589836370,-150.0,0.00055,2]
[357027539,1743589836379,-250000.0,0.00055,120]
[357027540,1743589836388,-198.706,0.00055,104]
[357027541,1743589836398,-116237.48,0.00055,120]
[357027542,1743589836407,-73700.0,0.00055,120]
[357027543,1743589836416,-1177.83,0.00055342,2]
[357027544,1743589836425,-500.0,0.00055342,2]
[357027545,1743589836435,-1414.52,0.00055342,120]
[357027546,1743589836444,-998.37,0.00055342,30]
[357027547,1743589836453,-998.37,0.00055342,30]
[357027548,1743589836463,-500.0,0.00055547,120]
[357027549,1743589836473,-462.6,0.00055547,120]
[357027550,1743589836486,-307.16,0.00055547,120]
[357027551,1743589836495,-395.14075012,0.00055547,120]
[357027552,1743589836504,-330.85935921,0.00055547,30]
[357027553,1743589836514,-500.0,0.00055547,12]
[357027554,1743589836523,-500.0,0.00055547,120]
[357027555,1743589836533,-500.0,0.00055547,120]
[357027556,1743589836543,-150.0,0.00055547,120]
[357027557,1743589836552,-500.0,0.00055547,120]